bitfinex-derivatives/quotes_BTCF0:USTF0_20260104
["timestamp","ask_amount","ask_price","bid_price","bid_amount"]
[1767520648140,0.02396445,91489.0,91478.0,0.09675557]
[1767520648343,0.02396445,91488.0,91478.0,0.09675557]
[1767520648549,0.10571499,91490.0,91478.0,0.09675557]
[1767520648745,0.02396547,91489.0,91478.0,0.09675557]
[1767520648949,0.02396547,91488.0,91478.0,0.09675557]
[1767520649247,0.10571499,91490.0,91478.0,0.09675557]
[1767520649443,0.02396661,91489.0,91478.0,0.09675557]
[1767520649643,0.02396661,91488.0,91478.0,0.09675557]
[1767520649845,0.010935,91490.0,91478.0,0.09675557]
[1767520650045,0.02396661,91489.0,91478.0,0.09675557]
[1767520650240,0.00016396,91493.0,91482.0,0.09397382]
[1767520650446,0.09514583,91499.0,91484.0,0.10589438]
[1767520650641,0.010934,91496.0,91484.0,0.10589438]
[1767520655637,0.010934,91498.0,91484.0,0.11682938]
[1767520655842,0.010934,91497.0,91484.0,0.11682938]
[1767520656158,0.010934,91496.0,91484.0,0.11682938]
[1767520657255,0.010934,91496.0,91487.0,0.09325275]
[1767520657456,0.09530979,91499.0,91487.0,0.10539621]
[1767520657760,0.05228409,91499.0,91491.0,0.10418675]
[1767520657954,0.010933,91502.0,91491.0,0.09325275]
[1767520659162,0.010934,91496.0,91491.0,0.09325275]
[1767520659356,0.012712,91497.0,91487.0,0.00016396]
[1767520659561,0.012712,91496.0,91487.0,9.6e-07]
[1767520660059,0.010935,91489.0,91487.0,9.6e-07]
[1767520660256,0.012712,91496.0,91487.0,9.6e-07]
[1767520660461,0.11842499,91500.0,91487.0,9.6e-07]
[1767520660760,0.010934,91495.0,91487.0,9.6e-07]
[1767520662553,0.010933,91500.0,91487.0,0.10539717]
[1767520662954,0.010933,91500.0,91488.0,0.10539621]
[1767520663763,0.010933,91500.0,91490.0,0.09325275]
[1767520663957,0.010933,91500.0,91490.0,0.10539621]
[1767520666663,0.00016315,91503.0,91490.0,0.10539621]
[1767520667361,0.010933,91500.0,91490.0,0.10539621]
[1767520667562,0.010933,91500.0,91490.0,0.09325275]
[1767520668067,0.010933,91500.0,91488.0,0.010935]
[1767520669465,0.00016315,91503.0,91487.0,0.01214442]
[1767520669466,0.010934,91499.0,91487.0,0.10539717]
[1767520669769,0.010934,91498.0,91487.0,0.10539717]
[1767520670766,0.010933,91500.0,91487.0,0.11633217]
[1767520671468,0.00016315,91503.0,91489.0,0.10418775]
[1767520671669,0.00016315,91503.0,91490.0,0.01214346]
[1767520671861,0.00016315,91503.0,91491.0,0.10539621]
[1767520673271,0.010933,91501.0,91491.0,0.10539621]
[1767520674462,0.010933,91500.0,91491.0,0.10539621]
[1767520677168,0.00016315,91503.0,91493.0,0.09325275]
[1767520677368,0.09296,91506.0,91496.0,0.01214346]
[1767520677572,0.09296,91506.0,91497.0,0.10539621]
[1767520677773,0.010932,91508.0,91497.0,0.10539621]
[1767520678377,0.010933,91507.0,91497.0,0.09325275]
[1767520679677,0.09477999,91510.0,91497.0,0.09325275]
[1767520679868,0.010933,91506.0,91497.0,0.09325275]
[1767520681575,0.09296,91512.0,91499.0,0.11077244]
[1767520681875,0.09296,91512.0,91503.0,0.11077244]
[1767520682063,0.010931,91522.0,91510.0,0.01183495]
[1767520682269,0.010931,91520.0,91512.0,0.11077244]
[1767520682470,0.02320267,91519.0,91512.0,0.09893749]
[1767520682769,0.010932,91516.0,91508.0,0.01183495]
[1767520684376,0.010932,91516.0,91507.0,0.09910145]
[1767520685577,0.09477999,91522.0,91507.0,0.09910145]
[1767520685768,0.010931,91522.0,91507.0,0.1109364]
[1767520685965,0.010931,91520.0,91507.0,0.1109364]
[1767520688572,0.010931,91520.0,91508.0,0.11077244]
[1767520690581,0.010931,91520.0,91510.0,0.11077244]
[1767520690773,0.010931,91523.0,91510.0,0.11077244]
[1767520691481,0.010931,91524.0,91511.0,0.010932]
[1767520691675,0.09296,91525.0,91512.0,0.11077244]
[1767520691869,0.09296,91525.0,91513.0,0.11077244]
[1767520692069,0.010931,91524.0,91513.0,0.11077244]
[1767520692471,0.010931,91522.0,91513.0,0.11077244]
[1767520695183,0.010931,91522.0,91513.0,0.09893749]
[1767520696486,0.010931,91523.0,91513.0,0.09893749]
[1767520696686,0.09296,91525.0,91515.0,0.11077244]
[1767520696887,0.09296,91525.0,91515.0,0.12170444]
[1767520698381,0.09296,91525.0,91517.0,0.11077244]
[1767520699388,0.010931,91524.0,91517.0,0.11077244]
[1767520699584,0.010931,91524.0,91517.0,0.09893749]
[1767520700600,0.09296,91525.0,91517.0,4.9e-07]
[1767520700785,0.09296,91525.0,91514.0,0.01183495]
[1767520701196,0.010931,91520.0,91514.0,0.01183495]
[1767520701695,0.010931,91523.0,91514.0,0.01183495]
[1767520701884,0.010931,91522.0,91514.0,0.01183495]
[1767520702896,0.09296,91525.0,91516.0,0.01183495]
[1767520703197,0.09296,91525.0,91516.0,0.02276595]
[1767520704084,0.09296,91525.0,91516.0,0.01183495]
[1767520706597,0.09296,91525.0,91515.0,0.09893749]
[1767520708497,0.09296,91525.0,91513.0,0.01183495]
[1767520708698,0.09296,91525.0,91515.0,0.010931]
[1767520710701,0.00218511,91529.0,91516.0,0.01272361]
[1767520710888,0.00218511,91529.0,91517.0,0.02365461]
[1767520713005,0.00218511,91529.0,91518.0,0.010931]
[1767520714310,0.00218511,91529.0,91517.0,0.01272361]
[1767520715808,0.00218511,91529.0,91515.0,0.09974765]
[1767520716705,0.01093,91527.0,91515.0,0.09974765]
[1767520718710,0.01311511,91529.0,91515.0,0.11067865]
[1767520719410,0.01093,91527.0,91515.0,0.11067865]
[1767520720300,0.00218511,91529.0,91514.0,0.01236393]
[1767520720807,0.00218511,91529.0,91515.0,0.01236393]
[1767520721110,0.01093,91526.0,91515.0,0.01236393]
[1767520723009,0.01093,91528.0,91515.0,0.01236393]
[1767520724013,0.01093,91526.0,91515.0,0.01236393]
[1767520724306,0.01311511,91529.0,91515.0,0.01236393]
[1767520724811,0.01093,91527.0,91515.0,0.01236393]
[1767520726813,0.00218511,91529.0,91515.0,0.01236393]
[1767520728412,0.01093,91526.0,91515.0,0.01236393]
[1767520729611,0.00218511,91529.0,91515.0,0.01236393]
[1767520729914,0.00218511,91529.0,91511.0,0.01236393]
[1767520729915,0.010931,91522.0,91511.0,0.01236393]
[1767520730805,0.010931,91522.0,91512.0,0.01236393]
[1767520732317,0.00218511,91529.0,91512.0,0.01236393]
[1767520732612,0.02327388,91528.0,91512.0,0.01236393]
[1767520732812,0.010931,91521.0,91512.0,0.01236393]
[1767520741620,0.010931,91524.0,91512.0,0.01236393]
[1767520741822,0.010931,91523.0,91512.0,0.01236393]
[1767520742221,0.010931,91523.0,91511.0,0.09243177]
[1767520742622,0.00218511,91529.0,91511.0,0.09243177]
[1767520742623,0.010931,91522.0,91511.0,0.09243177]
[1767520743529,0.010931,91524.0,91511.0,0.11512618]
[1767520743730,0.010931,91524.0,91512.0,0.01176241]
[1767520744723,0.01093,91526.0,91512.0,0.01176241]
[1767520745025,0.01093,91526.0,91513.0,0.01176241]
[1767520745628,0.01093,91525.0,91514.0,0.01176241]
[1767520746327,0.00218511,91529.0,91514.0,0.02269441]
[1767520746523,0.02327837,91528.0,91514.0,0.02269441]
[1767520746829,0.00218511,91529.0,91515.0,0.01176241]
[1767520747128,0.02327833,91528.0,91515.0,0.01176241]
[1767520747329,0.01093,91527.0,91515.0,0.01176241]
[1767520748829,0.01093,91525.0,91515.0,0.01176241]
[1767520749431,0.01093,91525.0,91514.0,0.0960742]
[1767520751128,0.010931,91524.0,91514.0,0.0960742]
[1767520753435,0.01311511,91529.0,91514.0,0.0960742]
[1767520753622,0.010931,91523.0,91514.0,0.0960742]
[1767520754834,0.00218511,91529.0,91514.0,0.0960742]
[1767520756435,0.010931,91522.0,91514.0,0.0960742]
[1767520759330,0.0115095,91521.0,91507.0,0.00016396]
[1767520759538,0.0115095,91521.0,91503.0,0.05881198]
[1767520759539,0.0115095,91520.0,91503.0,0.05881198]
[1767520759723,0.010932,91514.0,91502.0,0.16266498]
[1767520759930,0.010932,91514.0,91502.0,0.15173198]
[1767520760232,0.010932,91513.0,91502.0,0.09292]
[1767520760436,0.010932,91513.0,91502.0,0.1889942]
[1767520761522,0.010932,91513.0,91503.0,0.01176241]
[1767520763337,0.010932,91513.0,91505.0,0.01176241]
[1767520764338,0.010932,91516.0,91505.0,0.01176241]
[1767520765138,0.010932,91516.0,91506.0,0.01176241]
[1767520765641,0.010932,91515.0,91506.0,0.01176241]
[1767520766134,0.010932,91515.0,91506.0,0.10783661]
[1767520766342,0.010932,91515.0,91507.0,0.01176241]
[1767520766840,0.010931,91518.0,91507.0,0.01176241]
[1767520769737,0.010931,91516.0,91507.0,0.01176241]
[1767520770041,0.010931,91516.0,91506.0,0.0960742]
[1767520770442,0.09484488,91520.0,91506.0,0.0960742]
[1767520770643,0.09484488,91520.0,91503.0,0.01176241]
[1767520771452,0.010932,91515.0,91503.0,0.01176241]
[1767520775455,0.010932,91514.0,91503.0,0.01176241]
[1767520779362,0.09484488,91520.0,91503.0,0.01176241]
[1767520779562,0.010932,91515.0,91503.0,0.01176241]
[1767520779752,0.010932,91513.0,91503.0,0.01176241]
[1767520779957,0.010932,91514.0,91500.0,0.0939442]
[1767520780154,0.09468092,91510.0,91500.0,0.10393671]
[1767520781661,0.09468092,91510.0,91500.0,0.11486971]
[1767520782667,0.09468092,91510.0,91500.0,0.10393671]
[1767520782858,0.09468092,91510.0,91499.0,0.09292]
[1767520784864,0.09468092,91510.0,91499.0,0.103853]
[1767520787568,0.09468092,91510.0,91499.0,0.11384551]
[1767520788172,0.09468092,91510.0,91499.0,0.10291251]
[1767520788371,0.09468092,91510.0,91501.0,0.010933]
[1767520788862,0.09468092,91510.0,91501.0,0.02092551]
[1767520789067,0.09468092,91510.0,91502.0,0.00999251]
[1767520789569,0.09468092,91510.0,91498.0,0.01109696]
[1767520790573,0.09468092,91510.0,91500.0,0.010933]
[1767520791267,0.09468092,91510.0,91501.0,0.010933]
[1767520796578,0.09468092,91510.0,91498.0,0.00016396]
[1767520798178,0.09468092,91510.0,91499.0,0.010933]
[1767520799976,0.010932,91514.0,91501.0,0.00999251]
[1767520800176,0.010932,91514.0,91500.0,0.09647902]
[1767520800380,0.010932,91513.0,91500.0,0.09647902]
[1767520800582,0.010932,91513.0,91499.0,0.010933]
[1767520800983,0.09468092,91510.0,91499.0,0.010933]
[1767520801778,0.00911216,91517.0,91498.0,0.00966215]
[1767520802078,0.09484488,91520.0,91500.0,0.00966215]
[1767520802282,0.18776488,91520.0,91513.0,0.010932]
[1767520802471,0.18776488,91520.0,91502.0,0.010933]
[1767520802472,0.09308396,91520.0,91512.0,0.010932]
[1767520802876,0.09308396,91520.0,91510.0,0.010932]
[1767520803078,0.09308396,91520.0,91512.0,0.010932]
[1767520803276,0.09308396,91520.0,91513.0,0.010932]
[1767520804274,0.00016396,91520.0,91515.0,0.010932]
[1767520804477,0.00016396,91520.0,91507.0,0.00016396]
[1767520805192,0.00016396,91520.0,91512.0,0.010932]
[1767520805680,0.00927612,91520.0,91509.0,0.010932]
[1767520806787,0.00911216,91519.0,91510.0,0.010932]
[1767520807085,0.00911216,91519.0,91511.0,0.010932]
[1767520807284,0.00911216,91519.0,91509.0,0.010932]
[1767520807482,0.00911216,91519.0,91511.0,0.010932]
[1767520807884,0.00911216,91519.0,91507.0,0.00016396]
[1767520808084,0.00911216,91519.0,91510.0,0.010932]
[1767520808888,0.00911216,91519.0,91508.0,0.010932]
[1767520809087,0.09484488,91520.0,91507.0,0.00016396]
[1767520809289,0.09484488,91520.0,91511.0,0.010932]
[1767520810590,0.09484488,91520.0,91507.0,0.00016396]
[1767520810788,0.09484488,91520.0,91513.0,0.010932]
[1767520810989,0.00016396,91520.0,91513.0,0.010932]
[1767520811595,0.00016396,91520.0,91514.0,0.010932]
[1767520811781,0.00016396,91520.0,91512.0,0.010932]
[1767520811986,0.02430593,91519.0,91512.0,0.010932]
[1767520812181,0.00016396,91520.0,91512.0,0.010932]
[1767520812386,0.02430595,91519.0,91512.0,0.010932]
[1767520812700,0.00016396,91520.0,91514.0,0.010932]
[1767520812994,0.02430595,91519.0,91514.0,0.010932]
[1767520813291,0.00016396,91520.0,91514.0,0.010932]
[1767520813487,0.02430586,91519.0,91514.0,0.010932]
[1767520813687,0.00016396,91520.0,91514.0,0.010932]
[1767520813882,0.02430586,91519.0,91514.0,0.010932]
[1767520814088,0.00016396,91520.0,91512.0,0.010932]
[1767520814292,0.02430569,91519.0,91507.0,0.00016396]
[1767520814487,0.00016396,91520.0,91507.0,0.00016396]
[1767520814890,0.00016396,91520.0,91512.0,0.010932]
[1767520816692,0.00016396,91520.0,91507.0,0.00016396]
[1767520816902,0.00016396,91520.0,91511.0,0.010932]
[1767520817797,0.00016396,91520.0,91512.0,0.010932]
[1767520818694,0.00016396,91520.0,91510.0,0.010932]
[1767520824804,0.02440676,91519.0,91510.0,0.010932]
[1767520825005,0.02440676,91518.0,91510.0,0.010932]
[1767520825205,0.02440676,91517.0,91510.0,0.010932]
[1767520825505,0.02440676,91516.0,91510.0,0.010932]
[1767520825817,0.02440676,91515.0,91510.0,0.010932]
[1767520826105,0.02440676,91514.0,91507.0,0.01109596]
[1767520826310,0.02440676,91513.0,91507.0,0.00016396]
[1767520826512,0.02440676,91512.0,91508.0,0.010932]
[1767520826804,0.00927612,91520.0,91508.0,0.010932]
[1767520827010,0.02440725,91519.0,91507.0,0.00016396]
[1767520827315,0.02440725,91518.0,91508.0,0.010932]
[1767520827612,0.02440725,91517.0,91508.0,0.010932]
[1767520827818,0.02440725,91516.0,91508.0,0.010932]
[1767520828015,0.02440725,91515.0,91508.0,0.010932]
[1767520828216,0.02440725,91514.0,91508.0,0.010932]
[1767520828517,0.00927612,91520.0,91508.0,0.010932]
[1767520828817,0.02467951,91519.0,91508.0,0.010932]
[1767520829016,0.02467951,91518.0,91508.0,0.010932]
[1767520829218,0.02467951,91517.0,91508.0,0.010932]
[1767520829418,0.02467951,91516.0,91508.0,0.010932]
[1767520829619,0.02467951,91515.0,91508.0,0.010932]
[1767520829824,0.00927612,91520.0,91508.0,0.010932]
[1767520830010,0.02467957,91519.0,91508.0,0.010932]
[1767520830318,0.02467957,91518.0,91508.0,0.010932]
[1767520830521,0.02467957,91517.0,91508.0,0.010932]
[1767520830717,0.02467957,91516.0,91507.0,0.00016396]
[1767520830917,0.02467957,91515.0,91507.0,0.00016396]
[1767520831120,0.00908502,91519.0,91507.0,0.00016396]
[1767520831325,0.02467972,91518.0,91507.0,0.00016396]
[1767520831620,0.02467972,91517.0,91507.0,0.00016396]
[1767520831815,0.02467972,91516.0,91507.0,0.00016396]
[1767520832018,0.02467972,91515.0,91507.0,0.00016396]
[1767520832207,0.02468066,91514.0,91507.0,0.00016396]
[1767520832415,0.00908502,91519.0,91507.0,0.00016396]
[1767520832615,0.02468057,91518.0,91507.0,0.00016396]
[1767520832812,0.02468057,91517.0,91508.0,0.010932]
[1767520833011,0.02468057,91516.0,91508.0,0.010932]
[1767520833220,0.02468057,91515.0,91508.0,0.010932]
[1767520833523,0.02468047,91514.0,91508.0,0.010932]
[1767520833723,0.00908502,91519.0,91508.0,0.010932]
[1767520834024,0.02468047,91518.0,91508.0,0.010932]
[1767520834326,0.02468047,91517.0,91508.0,0.010932]
[1767520834515,0.02468047,91516.0,91508.0,0.010932]
[1767520834715,0.00908502,91519.0,91508.0,0.010932]
[1767520835727,0.00908502,91519.0,91507.0,0.00016396]
[1767520835927,0.00908502,91519.0,91509.0,0.010932]
[1767520836622,0.00016396,91520.0,91507.0,0.01109596]
[1767520836828,0.00016396,91520.0,91509.0,0.010932]
[1767520838531,0.02467994,91519.0,91509.0,0.010932]
[1767520838827,0.00016396,91520.0,91509.0,0.010932]
[1767520839031,0.02467994,91519.0,91509.0,0.010932]
[1767520839227,0.00016396,91520.0,91509.0,0.010932]
[1767520839529,0.02467985,91519.0,91507.0,0.01109696]
[1767520839720,0.00016396,91520.0,91507.0,0.01109696]
[1767520839921,0.02467985,91519.0,91509.0,0.010932]
[1767520840123,0.00016396,91520.0,91509.0,0.010932]
[1767520840324,0.02467985,91519.0,91509.0,0.010932]
[1767520840524,0.00016396,91520.0,91509.0,0.010932]
[1767520840720,0.00016396,91520.0,91510.0,0.10912372]
[1767520840925,0.01093,91528.0,91515.0,0.010932]
[1767520841128,0.02467879,91527.0,91515.0,0.010932]
[1767520841431,0.02467879,91526.0,91511.0,0.00940464]
[1767520841621,7.9e-07,91525.0,91520.0,0.010931]
[1767520841820,0.09292,91528.0,91520.0,0.010931]
[1767520842017,0.09292,91528.0,91518.0,0.010931]
[1767520845837,0.09292,91528.0,91519.0,0.010931]
[1767520846636,0.1083002,91522.0,91507.0,0.00016396]
[1767520846831,0.00931883,91521.0,91507.0,0.00016396]
[1767520847023,0.00931883,91521.0,91507.0,0.01109696]
[1767520847526,0.00931883,91521.0,91507.0,0.01109596]
[1767520847731,0.0935584,91522.0,91507.0,0.01109596]
[1767520850138,0.0935584,91522.0,91507.0,0.00016396]
[1767520850637,0.010931,91521.0,91507.0,0.00016396]
[1767520851228,0.02024983,91521.0,91507.0,0.00016396]
[1767520851729,0.00931883,91521.0,91507.0,0.00016396]
[1767520851925,0.00931883,91521.0,91508.0,0.010932]
[1767520853341,0.02024983,91521.0,91507.0,0.00016396]
[1767520854137,0.0826274,91522.0,91507.0,0.00016396]
[1767520854339,0.02472376,91521.0,91507.0,0.00016396]
[1767520854539,0.1192302,91527.0,91511.0,0.010932]
[1767520854730,0.010931,91524.0,91511.0,0.010932]
[1767520854934,0.02472372,91523.0,91507.0,0.00016396]
[1767520855136,0.02472372,91522.0,91507.0,0.00016396]
[1767520855336,0.02472372,91521.0,91511.0,0.010932]
[1767520855538,0.02024883,91526.0,91511.0,0.010932]
[1767520855838,0.02472371,91525.0,91511.0,0.010932]
[1767520856037,0.02472371,91524.0,91511.0,0.010932]
[1767520856237,0.02472371,91523.0,91511.0,0.010932]
[1767520856429,0.02472371,91522.0,91507.0,0.00016396]
[1767520856637,0.09292,91526.0,91509.0,0.00982019]
[1767520856836,0.02472329,91525.0,91509.0,0.00982019]
[1767520857037,0.02472329,91524.0,91509.0,0.00982019]
[1767520857236,0.02472329,91523.0,91508.0,0.09100897]
[1767520857537,0.02472329,91522.0,91514.0,0.010932]
[1767520857736,0.00949802,91525.0,91514.0,0.010932]
[1767520857942,0.02472361,91524.0,91514.0,0.010932]
[1767520858143,0.02472361,91523.0,91514.0,0.010932]
[1767520858343,0.00949802,91525.0,91514.0,0.010932]
[1767520858344,0.02472361,91522.0,91514.0,0.010932]
[1767520858543,0.00949802,91525.0,91514.0,0.010932]
[1767520858739,0.02472366,91524.0,91514.0,0.010932]
[1767520858938,0.02472366,91523.0,91514.0,0.010932]
[1767520859140,0.02472366,91522.0,91514.0,0.010932]
[1767520859341,0.00949802,91525.0,91514.0,0.010932]
[1767520859544,0.02472374,91524.0,91514.0,0.010932]
[1767520859845,0.02472374,91523.0,91514.0,0.010932]
[1767520860037,0.02472374,91522.0,91514.0,0.010932]
[1767520860237,0.00949802,91525.0,91514.0,0.010932]
[1767520860438,0.0247237,91524.0,91514.0,0.010932]
[1767520860641,0.0247237,91523.0,91514.0,0.010932]
[1767520860841,0.0247237,91522.0,91508.0,0.09100897]
[1767520861039,0.09292,91526.0,91508.0,0.10021891]
[1767520861246,0.02472384,91525.0,91515.0,0.010931]
[1767520861448,0.02472384,91524.0,91515.0,0.010931]
[1767520861750,0.09292,91526.0,91515.0,0.010931]
[1767520861941,0.02472387,91525.0,91508.0,0.10021891]
[1767520862136,0.02472387,91524.0,91508.0,0.10021891]
[1767520862350,0.09292,91526.0,91508.0,0.10021891]
[1767520862649,0.02472405,91525.0,91508.0,0.10021891]
[1767520862845,0.02472405,91524.0,91508.0,0.10021891]
[1767520863145,0.09292,91526.0,91508.0,0.10021891]
[1767520863449,0.02472421,91525.0,91515.0,0.010932]
[1767520863746,0.02472421,91524.0,91515.0,0.010932]
[1767520863946,0.09292,91526.0,91515.0,0.010932]
[1767520864143,0.02472427,91525.0,91515.0,0.010932]
[1767520864342,0.02472427,91524.0,91516.0,0.010931]
[1767520864648,0.09292,91526.0,91516.0,0.010931]
[1767520864846,0.02472451,91525.0,91516.0,0.010931]
[1767520865149,0.02472451,91524.0,91508.0,0.10021891]
[1767520865350,0.02472451,91523.0,91517.0,0.010931]
[1767520865550,0.09292,91526.0,91517.0,0.010931]
[1767520865850,0.00218511,91529.0,91515.0,0.00920994]
[1767520866046,0.00218511,91529.0,91521.0,0.010931]
[1767520866247,0.00218511,91529.0,91523.0,0.010931]
[1767520867449,0.00218511,91529.0,91521.0,0.010931]
[1767520869647,0.00218511,91529.0,91524.0,0.01093]
[1767520869847,1.1e-07,91529.0,91518.0,0.10633142]
[1767520870147,1.1e-07,91529.0,91521.0,0.10633142]
[1767520870651,1.1e-07,91529.0,91524.0,0.01093]
[1767520871048,1.1e-07,91529.0,91526.0,0.01093]
[1767520871847,1.1e-07,91529.0,91525.0,0.00920994]
[1767520872046,0.00016396,91532.0,91527.0,0.01093]
[1767520872641,0.00016396,91532.0,91525.0,0.00920994]
[1767520872642,0.00016396,91532.0,91525.0,0.02013994]
[1767520872845,0.00016396,91532.0,91525.0,0.00920994]
[1767520873553,0.00016396,91532.0,91526.0,0.01093]
[1767520874351,0.00016396,91532.0,91525.0,0.00920994]
[1767520874352,9.6e-07,91532.0,91525.0,0.10633142]
[1767520874541,0.09292,91542.0,91530.0,0.10633142]
[1767520874745,0.09292,91542.0,91531.0,0.00920994]
[1767520875057,0.09292,91542.0,91534.0,0.010929]
[1767520875445,0.10445081,91550.0,91534.0,0.010929]
[1767520875646,0.09292,91549.0,91534.0,0.010929]
[1767520876458,0.10272048,91549.0,91534.0,0.010929]
[1767520876649,0.10272048,91549.0,91531.0,0.00920994]
[1767520876650,0.10272048,91549.0,91536.0,0.010929]
[1767520877556,0.10272048,91549.0,91533.0,0.010929]
[1767520877752,0.0343692,91548.0,91533.0,0.010929]
[1767520877952,0.02456872,91547.0,91533.0,0.010929]
[1767520878152,0.02456872,91546.0,91533.0,0.010929]
[1767520878354,0.02456872,91545.0,91533.0,0.010929]
[1767520878556,0.02456872,91544.0,91533.0,0.010929]
[1767520878758,0.02456872,91543.0,91533.0,0.010929]
[1767520879059,0.09292,91549.0,91533.0,0.010929]
[1767520879258,0.02456446,91548.0,91533.0,0.010929]
[1767520879459,0.02456446,91547.0,91533.0,0.010929]
[1767520879659,0.02456446,91546.0,91535.0,0.010929]
[1767520879854,0.02456446,91545.0,91535.0,0.010929]
[1767520880050,0.02456446,91544.0,91535.0,0.010929]
[1767520880361,0.02456446,91543.0,91535.0,0.010929]
[1767520880556,0.09292,91549.0,91535.0,0.010929]
[1767520880757,0.02455821,91548.0,91535.0,0.010929]
[1767520880954,0.02455821,91547.0,91535.0,0.010929]
[1767520881158,0.02455821,91546.0,91535.0,0.010929]
[1767520881351,0.02455821,91545.0,91535.0,0.010929]
[1767520881552,0.02455821,91544.0,91535.0,0.010929]
[1767520881758,0.02455821,91543.0,91535.0,0.010929]
[1767520881956,0.010928,91549.0,91533.0,0.010929]
[1767520882148,0.02448898,91548.0,91535.0,0.010929]
[1767520882357,0.02448898,91547.0,91535.0,0.010929]
[1767520882560,0.02448898,91546.0,91535.0,0.010929]
[1767520882755,0.02448898,91545.0,91535.0,0.010929]
[1767520882954,0.02448898,91544.0,91535.0,0.010929]
[1767520883157,0.10445081,91550.0,91535.0,0.010929]
[1767520883355,0.10445081,91550.0,91531.0,0.09712148]
[1767520883356,0.02448542,91549.0,91534.0,0.00920994]
[1767520883559,0.09292,91552.0,91529.0,0.00016387]
[1767520883560,0.02448542,91548.0,91540.0,0.10633142]
[1767520883758,0.02448542,91547.0,91540.0,0.10633142]
[1767520883965,0.010927,91555.0,91540.0,0.10633142]
[1767520884263,0.02448486,91554.0,91540.0,0.09712148]
[1767520884465,0.01198488,91559.0,91540.0,0.09712148]
[1767520884466,0.02448486,91553.0,91541.0,0.010928]
[1767520884662,0.02448486,91552.0,91540.0,0.10805048]
[1767520884855,0.010927,91557.0,91540.0,0.10805048]
[1767520885053,0.02448236,91556.0,91540.0,0.10805048]
[1767520885253,0.02448236,91555.0,91540.0,0.10805048]
[1767520885454,0.02448236,91554.0,91540.0,0.10805048]
[1767520885654,0.02448236,91553.0,91540.0,0.10805048]
[1767520885962,0.010927,91557.0,91540.0,0.10805048]
[1767520886158,0.02448064,91556.0,91540.0,0.10805048]
[1767520886364,0.02448064,91555.0,91542.0,0.010928]
[1767520886563,0.02448064,91554.0,91542.0,0.010928]
[1767520886751,0.02291088,91559.0,91542.0,0.010928]
[1767520887065,0.010927,91556.0,91540.0,0.10805048]
[1767520887259,0.02447881,91555.0,91540.0,0.10805048]
[1767520888560,0.02447881,91555.0,91542.0,0.010928]
[1767520888759,0.02447881,91554.0,91542.0,0.010928]
[1767520888965,0.0021844,91559.0,91542.0,0.02013794]
[1767520889166,0.03540383,91558.0,91542.0,0.02013794]
[1767520889458,0.02447783,91557.0,91542.0,0.02013794]
[1767520889663,0.02447783,91557.0,91544.0,0.010928]
[1767520890366,0.02447783,91557.0,91543.0,0.010928]
[1767520890561,0.02447783,91557.0,91540.0,0.10692697]
[1767520890562,0.0021844,91559.0,91551.0,0.010927]
[1767520890870,0.0021844,91559.0,91550.0,0.010927]
[1767520891868,0.0021844,91559.0,91547.0,0.02073349]
[1767520892169,0.0021844,91559.0,91549.0,0.010928]
[1767520892561,0.0021844,91559.0,91547.0,0.00980549]
[1767520894054,0.0021844,91559.0,91547.0,0.02073349]
[1767520894969,0.0021844,91559.0,91548.0,0.0092218]
[1767520896072,0.0021844,91559.0,91550.0,0.0092218]
[1767520896476,0.0021844,91559.0,91549.0,0.09451371]
[1767520896875,0.0021844,91559.0,91549.0,0.10544171]
[1767520897374,0.0021844,91559.0,91549.0,0.09451371]
[1767520899777,0.0021844,91559.0,91549.0,0.10544071]
[1767520900376,0.0021844,91559.0,91549.0,0.11466251]
[1767520901072,0.0021844,91559.0,91549.0,0.10373551]
[1767520905067,0.0021844,91559.0,91550.0,0.010927]
[1767520905379,0.0021844,91559.0,91550.0,0.0201488]
[1767520905581,0.0751044,91560.0,91553.0,0.10373551]
[1767520905764,0.09465033,91563.0,91553.0,0.09451371]
[1767520905969,0.02449517,91562.0,91553.0,0.09451371]
[1767520906280,0.010926,91562.0,91553.0,0.09451371]
[1767520906773,0.09465033,91563.0,91553.0,0.09451371]
[1767520906983,0.02449661,91562.0,91553.0,0.09451371]
[1767520907181,0.09465033,91563.0,91553.0,0.09451371]
[1767520907369,0.02449761,91562.0,91553.0,0.09451371]
[1767520907568,0.10557633,91563.0,91553.0,0.09451371]
[1767520907770,0.02449761,91562.0,91553.0,0.09451371]
[1767520908068,0.09292,91569.0,91553.0,0.09451371]
[1767520908269,0.02449742,91568.0,91561.0,0.010926]
[1767520908581,0.00946751,91574.0,91559.0,0.010926]
[1767520908875,0.010925,91572.0,91556.0,0.11466251]
[1767520909076,0.010925,91568.0,91556.0,0.10373551]
[1767520909279,0.02449609,91567.0,91556.0,0.10373551]
[1767520909480,0.010925,91568.0,91556.0,0.10373551]
[1767520910184,0.010926,91564.0,91556.0,0.10373551]
[1767520910387,0.09465033,91570.0,91556.0,0.10373551]
[1767520910576,0.02449712,91569.0,91556.0,0.09451371]
[1767520910776,0.02449712,91568.0,91556.0,0.09451371]
[1767520910981,0.02449712,91567.0,91556.0,0.09451371]
[1767520911178,0.09465033,91570.0,91556.0,0.09451371]
[1767520911372,0.02449848,91569.0,91556.0,0.09451371]
[1767520911578,0.02449848,91568.0,91556.0,0.09451371]
[1767520911781,0.010926,91565.0,91556.0,0.09451371]
[1767520914790,0.02402394,91564.0,91556.0,0.09451371]
[1767520915081,0.02402394,91563.0,91556.0,0.09451371]
[1767520915285,0.02402394,91562.0,91549.0,0.010928]
[1767520915486,0.010927,91557.0,91548.0,0.09288]
[1767520915688,0.010926,91559.0,91548.0,0.09288]
[1767520915995,0.010926,91562.0,91548.0,0.09288]
[1767520916290,0.010926,91560.0,91548.0,0.09288]
[1767520916482,0.010926,91560.0,91548.0,0.103808]
[1767520917392,0.010926,91560.0,91548.0,0.09288]
[1767520918593,0.00946751,91566.0,91548.0,0.09288]
[1767520918891,0.010927,91558.0,91548.0,0.09288]
[1767520919083,0.010927,91558.0,91548.0,0.19661551]
[1767520919277,0.010926,91561.0,91548.0,0.19661551]
[1767520919478,0.03496418,91560.0,91548.0,0.19661551]
[1767520919679,0.010926,91560.0,91548.0,0.19661551]
[1767520920181,0.02404292,91559.0,91548.0,0.19661551]
[1767520920375,0.010926,91560.0,91548.0,0.20754351]
[1767520920577,0.02404292,91559.0,91550.0,0.010927]
[1767520920790,0.00946751,91566.0,91550.0,0.010927]
[1767520921083,0.02404292,91565.0,91551.0,0.1046442]
[1767520921288,0.010926,91562.0,91551.0,0.1046442]
[1767520921494,0.02404292,91561.0,91551.0,0.1046442]
[1767520921788,0.010926,91559.0,91551.0,0.09537621]